[Event "Titled Tuesday Blitz February 15 Late 2022"]
[White "Michelakos, Panagiotis"]
[Black "Galchenko, Matvey"]
[WhiteFideId "4216067"]
[BlackFideId "24175480"]
[WhiteElo "2140"]
[BlackElo "2453"]
[Result "1-0"]
[Round "04"]
[TimeControl "180+1"]
[Date "2022.02.15"]
[WhiteClock "0:00:26"]
[BlackClock "0:00:24"]

1. d4 {[%clk 0:03:00]}  e6 {[%clk 0:02:38]} 2. c4 {[%clk 0:03:00]}  f5 {[%clk 0:02:38]} 3. Nc3 {[%clk 0:02:59]}  Nf6 {[%clk 0:02:39]} 4. Bg5 {[%clk 0:02:56]}  Bb4 {[%clk 0:02:37]} 5. Nf3 {[%clk 0:02:53]}  O-O {[%clk 0:02:37]} 6. e3 {[%clk 0:02:52]}  b6 {[%clk 0:02:37]} 7. Qb3 {[%clk 0:02:48]}  a5 {[%clk 0:02:37]} 8. a3 {[%clk 0:02:48]}  Bxc3+ {[%clk 0:02:37]} 9. Qxc3 {[%clk 0:02:49]}  a4 {[%clk 0:02:35]} 10. Bd3 {[%clk 0:02:36]}  Bb7 {[%clk 0:02:11]} 11. Nd2 {[%clk 0:02:22]}  h6 {[%clk 0:02:06]} 12. Bh4 {[%clk 0:02:15]}  g5 {[%clk 0:02:00]} 13. Bg3 {[%clk 0:02:14]}  Nh5 {[%clk 0:01:57]} 14. O-O-O {[%clk 0:02:01]}  f4 {[%clk 0:01:54]} 15. Bc2 {[%clk 0:01:53]}  Qf6 {[%clk 0:01:01]} 16. exf4 {[%clk 0:01:51]}  gxf4 {[%clk 0:01:01]} 17. Qd3 {[%clk 0:01:45]}  Rf7 {[%clk 0:01:01]} 18. d5 {[%clk 0:01:34]}  Na6 {[%clk 0:00:53]} 19. Ne4 {[%clk 0:01:26]}  Qg7 {[%clk 0:00:44]} 20. dxe6 {[%clk 0:01:21]}  dxe6 {[%clk 0:00:40]} 21. Bh4 {[%clk 0:01:21]}  Nc5 {[%clk 0:00:31]} 22. Nxc5 {[%clk 0:01:19]}  bxc5 {[%clk 0:00:32]} 23. Rhe1 {[%clk 0:01:04]}  Rb8 {[%clk 0:00:22]} 24. Rxe6 {[%clk 0:00:52]}  Nf6 {[%clk 0:00:22]} 25. Bxf6 {[%clk 0:00:25]}  Rxf6 {[%clk 0:00:23]} 26. Rxf6 {[%clk 0:00:25]}  Qxf6 {[%clk 0:00:23]} 27. Qh7+ {[%clk 0:00:26]}  Kf8 {[%clk 0:00:24]} 28. Qxc7 {[%clk 0:00:26]} 1-0


[Site "https://www.chess.com"]

[Event "Titled Tuesday Blitz February 15 Late 2022"]
[White "Moroni, Luca Jr"]
[Black "Wieczorek, Oskar"]
[WhiteFideId "865834"]
[BlackFideId "1133950"]
[WhiteElo "2573"]
[BlackElo "2319"]
[Result "1-0"]
[Round "04"]
[TimeControl "180+1"]
[Date "2022.02.15"]
[WhiteClock "0:00:08"]
[BlackClock "0:00:02"]

1. c4 {[%clk 0:03:00]}  Nf6 {[%clk 0:02:59]} 2. Nc3 {[%clk 0:02:58]}  c5 {[%clk 0:02:59]} 3. Nf3 {[%clk 0:02:58]}  Nc6 {[%clk 0:02:59]} 4. d4 {[%clk 0:02:58]}  cxd4 {[%clk 0:02:59]} 5. Nxd4 {[%clk 0:02:58]}  g6 {[%clk 0:02:59]} 6. e4 {[%clk 0:02:58]}  d6 {[%clk 0:02:59]} 7. Be2 {[%clk 0:02:58]}  Nxd4 {[%clk 0:03:00]} 8. Qxd4 {[%clk 0:02:58]}  Bg7 {[%clk 0:03:01]} 9. Be3 {[%clk 0:02:57]}  O-O {[%clk 0:03:01]} 10. Qd1 {[%clk 0:02:58]}  a5 {[%clk 0:03:01]} 11. O-O {[%clk 0:02:58]}  Bd7 {[%clk 0:02:58]} 12. f4 {[%clk 0:02:58]}  Bc6 {[%clk 0:02:51]} 13. Bf3 {[%clk 0:02:56]}  a4 {[%clk 0:02:42]} 14. Rc1 {[%clk 0:02:55]}  Qa5 {[%clk 0:02:40]} 15. Nd5 {[%clk 0:02:44]}  Nxd5 {[%clk 0:02:29]} 16. exd5 {[%clk 0:02:45]}  Bd7 {[%clk 0:02:26]} 17. Rf2 {[%clk 0:02:33]}  Rfc8 {[%clk 0:02:17]} 18. Bg4 {[%clk 0:02:24]}  Bxg4 {[%clk 0:02:08]} 19. Qxg4 {[%clk 0:02:24]}  b5 {[%clk 0:01:54]} 20. c5 {[%clk 0:02:07]}  dxc5 {[%clk 0:01:53]} 21. f5 {[%clk 0:02:07]}  Qb4 {[%clk 0:01:46]} 22. Qf3 {[%clk 0:01:57]}  Bf6 {[%clk 0:01:34]} 23. fxg6 {[%clk 0:01:37]}  hxg6 {[%clk 0:01:32]} 24. Rcf1 {[%clk 0:01:30]}  Rd8 {[%clk 0:00:58]} 25. d6 {[%clk 0:01:28]}  c4 {[%clk 0:00:34]} 26. dxe7 {[%clk 0:01:20]}  Qxe7 {[%clk 0:00:34]} 27. Qxf6 {[%clk 0:01:08]}  Qxe3 {[%clk 0:00:33]} 28. Qxf7+ {[%clk 0:01:08]}  Kh8 {[%clk 0:00:34]} 29. Qxg6 {[%clk 0:00:58]}  Rf8 {[%clk 0:00:31]} 30. Qh5+ {[%clk 0:00:47]}  Kg7 {[%clk 0:00:22]} 31. Qg4+ {[%clk 0:00:33]}  Kh7 {[%clk 0:00:20]} 32. Qd7+ {[%clk 0:00:30]}  Kh8 {[%clk 0:00:20]} 33. Qxb5 {[%clk 0:00:26]}  Rxf2 {[%clk 0:00:15]} 34. Rxf2 {[%clk 0:00:27]}  Rf8 {[%clk 0:00:10]} 35. Qh5+ {[%clk 0:00:26]}  Kg7 {[%clk 0:00:08]} 36. Qg4+ {[%clk 0:00:24]}  Kh7 {[%clk 0:00:02]} 37. Qd7+ {[%clk 0:00:14]}  Kg8 {[%clk 0:00:02]} 38. Qd5+ {[%clk 0:00:11]}  Kg7 {[%clk 0:00:02]} 39. Qd7+ {[%clk 0:00:08]} 1-0


[Site "https://www.chess.com"]

[Event "Titled Tuesday Blitz February 15 Late 2022"]
[White "Musovic, Armin"]
[Black "Mikhalsky, Vladimir"]
[WhiteFideId "939935"]
[BlackFideId "14144352"]
[WhiteElo "2250"]
[BlackElo "2248"]
[Result "1-0"]
[Round "04"]
[TimeControl "180+1"]
[Date "2022.02.16"]
[WhiteClock "0:00:54"]
[BlackClock "0:00:09"]

1. a3 {[%clk 0:03:00]}  e5 {[%clk 0:02:59]} 2. Nc3 {[%clk 0:03:01]}  Nf6 {[%clk 0:02:57]} 3. d4 {[%clk 0:03:02]}  exd4 {[%clk 0:02:56]} 4. Qxd4 {[%clk 0:03:03]}  Nc6 {[%clk 0:02:56]} 5. Qa4 {[%clk 0:03:03]}  d5 {[%clk 0:02:55]} 6. Bg5 {[%clk 0:03:03]}  Be7 {[%clk 0:02:54]} 7. O-O-O {[%clk 0:03:03]}  Bd7 {[%clk 0:02:33]} 8. Bxf6 {[%clk 0:02:56]}  Bxf6 {[%clk 0:02:33]} 9. Nxd5 {[%clk 0:02:55]}  Bg5+ {[%clk 0:02:31]} 10. f4 {[%clk 0:02:54]}  Bh6 {[%clk 0:02:30]} 11. Qe4+ {[%clk 0:02:49]}  Ne7 {[%clk 0:02:06]} 12. Qxe7+ {[%clk 0:02:24]}  Qxe7 {[%clk 0:02:06]} 13. Nxe7 {[%clk 0:02:25]}  Kxe7 {[%clk 0:02:06]} 14. g3 {[%clk 0:02:10]}  Bc6 {[%clk 0:02:00]} 15. e4 {[%clk 0:02:07]}  g5 {[%clk 0:01:28]} 16. fxg5 {[%clk 0:01:36]}  Bxg5+ {[%clk 0:01:26]} 17. Kb1 {[%clk 0:01:37]}  Rad8 {[%clk 0:01:08]} 18. Bd3 {[%clk 0:01:37]}  f5 {[%clk 0:00:53]} 19. Re1 {[%clk 0:01:30]}  f4 {[%clk 0:00:26]} 20. Nh3 {[%clk 0:01:24]}  Bh6 {[%clk 0:00:20]} 21. Nxf4 {[%clk 0:01:20]}  Rhf8 {[%clk 0:00:19]} 22. Rhf1 {[%clk 0:01:10]}  Kd6 {[%clk 0:00:18]} 23. e5+ {[%clk 0:01:06]}  Kc5 {[%clk 0:00:18]} 24. Ne6+ {[%clk 0:01:06]}  Kb6 {[%clk 0:00:17]} 25. Nxf8 {[%clk 0:01:04]}  Bxf8 {[%clk 0:00:16]} 26. e6 {[%clk 0:01:01]}  Re8 {[%clk 0:00:16]} 27. Bxh7 {[%clk 0:00:58]}  Bg7 {[%clk 0:00:14]} 28. e7 {[%clk 0:00:54]}  Bh6 {[%clk 0:00:12]} 29. Bg6 {[%clk 0:00:54]}  Rh8 {[%clk 0:00:09]} 30. e8=Q {[%clk 0:00:54]}  Bxe8 {[%clk 0:00:09]} 31. Rxe8 {[%clk 0:00:54]} 1-0


[Site "https://www.chess.com"]

[Event "Titled Tuesday Blitz February 15 Late 2022"]
[White "Namitbir Singh Walia"]
[Black "Burke, Paul"]
[WhiteFideId "35071068"]
[BlackFideId "2605767"]
[WhiteElo "1479"]
[BlackElo "1826"]
[Result "1-0"]
[Round "04"]
[TimeControl "180+1"]
[Date "2022.02.16"]
[WhiteClock "0:01:22"]
[BlackClock "0:00:16"]

1. d4 {[%clk 0:03:00]}  Nf6 {[%clk 0:02:57]} 2. c4 {[%clk 0:03:01]}  c5 {[%clk 0:02:57]} 3. d5 {[%clk 0:02:59]}  Ne4 {[%clk 0:02:57]} 4. g3 {[%clk 0:02:44]}  Qa5+ {[%clk 0:02:55]} 5. Nd2 {[%clk 0:02:43]}  d6 {[%clk 0:02:53]} 6. Bg2 {[%clk 0:02:43]}  Nf6 {[%clk 0:02:53]} 7. Nf3 {[%clk 0:02:41]}  g6 {[%clk 0:02:53]} 8. O-O {[%clk 0:02:41]}  Bg7 {[%clk 0:02:53]} 9. e4 {[%clk 0:02:40]}  O-O {[%clk 0:02:51]} 10. Nb3 {[%clk 0:02:34]}  Qc7 {[%clk 0:02:44]} 11. Re1 {[%clk 0:02:32]}  Bg4 {[%clk 0:02:42]} 12. Bf4 {[%clk 0:02:29]}  Nbd7 {[%clk 0:02:38]} 13. h3 {[%clk 0:02:26]}  Bxf3 {[%clk 0:02:38]} 14. Qxf3 {[%clk 0:02:27]}  Ne5 {[%clk 0:02:36]} 15. Qe2 {[%clk 0:02:22]}  Rac8 {[%clk 0:02:14]} 16. Bd2 {[%clk 0:02:22]}  b6 {[%clk 0:02:13]} 17. f4 {[%clk 0:02:22]}  Ned7 {[%clk 0:02:12]} 18. Bc3 {[%clk 0:02:21]}  a6 {[%clk 0:01:37]} 19. a4 {[%clk 0:02:18]}  e5 {[%clk 0:01:26]} 20. dxe6 {[%clk 0:02:16]}  fxe6 {[%clk 0:01:25]} 21. Rad1 {[%clk 0:02:07]}  e5 {[%clk 0:01:20]} 22. Qd2 {[%clk 0:01:54]}  exf4 {[%clk 0:01:15]} 23. gxf4 {[%clk 0:01:55]}  Nh5 {[%clk 0:01:08]} 24. Qxd6 {[%clk 0:01:52]}  Bd4+ {[%clk 0:00:40]} 25. Rxd4 {[%clk 0:01:45]}  cxd4 {[%clk 0:00:40]} 26. Qe6+ {[%clk 0:01:38]}  Kh8 {[%clk 0:00:35]} 27. Bxd4+ {[%clk 0:01:34]}  Ng7 {[%clk 0:00:33]} 28. Qe7 {[%clk 0:01:23]}  Nc5 {[%clk 0:00:17]} 29. Bxg7+ {[%clk 0:01:22]}  Kg8 {[%clk 0:00:16]} 30. Bxf8 {[%clk 0:01:22]} 1-0


[Site "https://www.chess.com"]

[Event "Titled Tuesday Blitz February 15 Late 2022"]
[White "Nepomniachtchi, Ian"]
[Black "Mekhitarian, Krikor Sevag"]
[WhiteFideId "4168119"]
[BlackFideId "2107660"]
[WhiteElo "2740"]
[BlackElo "2598"]
[Result "1/2-1/2"]
[Round "04"]
[TimeControl "180+1"]
[Date "2022.02.15"]
[WhiteClock "0:00:59"]
[BlackClock "0:00:21"]

1. e4 {[%clk 0:03:00]}  c5 {[%clk 0:02:59]} 2. Nf3 {[%clk 0:03:01]}  g6 {[%clk 0:03:00]} 3. d4 {[%clk 0:03:02]}  cxd4 {[%clk 0:03:00]} 4. Nxd4 {[%clk 0:03:03]}  Nc6 {[%clk 0:03:00]} 5. c4 {[%clk 0:03:02]}  Nf6 {[%clk 0:03:00]} 6. Nc3 {[%clk 0:03:02]}  d6 {[%clk 0:03:00]} 7. Be3 {[%clk 0:03:03]}  Ng4 {[%clk 0:02:55]} 8. Nxc6 {[%clk 0:02:57]}  Nxe3 {[%clk 0:02:53]} 9. Nxd8 {[%clk 0:02:53]}  Nxd1 {[%clk 0:02:53]} 10. Rxd1 {[%clk 0:02:53]}  Kxd8 {[%clk 0:02:53]} 11. c5 {[%clk 0:02:54]}  Be6 {[%clk 0:02:38]} 12. h4 {[%clk 0:02:34]}  h5 {[%clk 0:02:20]} 13. g3 {[%clk 0:02:33]}  Bg7 {[%clk 0:02:12]} 14. Bh3 {[%clk 0:02:27]}  Bxh3 {[%clk 0:02:10]} 15. Rxh3 {[%clk 0:02:28]}  Rc8 {[%clk 0:02:09]} 16. Na4 {[%clk 0:02:14]}  b5 {[%clk 0:01:48]} 17. cxb6 {[%clk 0:02:10]}  axb6 {[%clk 0:01:48]} 18. Nxb6 {[%clk 0:02:05]}  Rc2 {[%clk 0:01:43]} 19. Rd2 {[%clk 0:02:03]}  Rxb2 {[%clk 0:01:37]} 20. Rxb2 {[%clk 0:02:01]}  Bxb2 {[%clk 0:01:38]} 21. Ke2 {[%clk 0:02:02]}  Bd4 {[%clk 0:01:36]} 22. Nc4 {[%clk 0:01:49]}  Kd7 {[%clk 0:01:35]} 23. Rh2 {[%clk 0:01:44]}  Ra8 {[%clk 0:01:33]} 24. Kd3 {[%clk 0:01:44]}  Bc5 {[%clk 0:01:11]} 25. f3 {[%clk 0:01:43]}  Kc6 {[%clk 0:01:05]} 26. Rb2 {[%clk 0:01:40]}  e6 {[%clk 0:01:04]} 27. a3 {[%clk 0:01:25]}  f6 {[%clk 0:01:03]} 28. Rb3 {[%clk 0:01:18]}  d5 {[%clk 0:01:03]} 29. exd5+ {[%clk 0:01:17]}  exd5 {[%clk 0:01:04]} 30. Ne3 {[%clk 0:01:14]}  Rxa3 {[%clk 0:00:56]} 31. Rxa3 {[%clk 0:01:14]}  Bxa3 {[%clk 0:00:57]} 32. g4 {[%clk 0:01:14]}  Bc5 {[%clk 0:00:50]} 33. Ng2 {[%clk 0:01:13]}  Bd6 {[%clk 0:00:48]} 34. gxh5 {[%clk 0:01:12]}  gxh5 {[%clk 0:00:47]} 35. Ne3 {[%clk 0:01:12]}  Bb4 {[%clk 0:00:31]} 36. Nf5 {[%clk 0:01:11]}  Kd7 {[%clk 0:00:30]} 37. Ke2 {[%clk 0:01:07]}  Be7 {[%clk 0:00:28]} 38. Ng7 {[%clk 0:01:05]}  f5 {[%clk 0:00:24]} 39. Nxf5 {[%clk 0:01:03]}  Bf6 {[%clk 0:00:24]} 40. Ng3 {[%clk 0:01:00]}  Bxh4 {[%clk 0:00:22]} 41. Nxh5 {[%clk 0:01:01]}  Bg5 {[%clk 0:00:21]} 42. Kd3 {[%clk 0:00:59]}  Ke6 {[%clk 0:00:21]} 1/2-1/2


[Site "https://www.chess.com"]

[Event "Titled Tuesday Blitz February 15 Late 2022"]
[White "Okike, David"]
[Black "Yurovskykh, Oleksandr"]
[WhiteFideId "8500134"]
[BlackFideId "14134020"]
[WhiteElo "2232"]
[BlackElo "2292"]
[Result "0-1"]
[Round "04"]
[TimeControl "180+1"]
[Date "2022.02.16"]
[WhiteClock "0:01:19"]
[BlackClock "0:00:21"]

1. e4 {[%clk 0:03:00]}  d5 {[%clk 0:02:56]} 2. exd5 {[%clk 0:03:00]}  Qxd5 {[%clk 0:02:56]} 3. Nc3 {[%clk 0:03:00]}  Qd8 {[%clk 0:02:56]} 4. Bc4 {[%clk 0:02:59]}  c5 {[%clk 0:02:55]} 5. Nf3 {[%clk 0:02:57]}  Nc6 {[%clk 0:02:55]} 6. O-O {[%clk 0:02:56]}  Nf6 {[%clk 0:02:51]} 7. h3 {[%clk 0:02:55]}  e6 {[%clk 0:02:49]} 8. Re1 {[%clk 0:02:55]}  Be7 {[%clk 0:02:47]} 9. a3 {[%clk 0:02:54]}  O-O {[%clk 0:02:46]} 10. d3 {[%clk 0:02:50]}  b6 {[%clk 0:02:46]} 11. Ne5 {[%clk 0:02:48]}  Nxe5 {[%clk 0:02:43]} 12. Rxe5 {[%clk 0:02:47]}  Bb7 {[%clk 0:02:43]} 13. Bg5 {[%clk 0:02:43]}  h6 {[%clk 0:02:41]} 14. Bh4 {[%clk 0:02:42]}  Nd7 {[%clk 0:02:33]} 15. Bxe7 {[%clk 0:02:41]}  Qxe7 {[%clk 0:02:34]} 16. Re1 {[%clk 0:02:41]}  Qg5 {[%clk 0:02:31]} 17. Ne4 {[%clk 0:02:39]}  Qg6 {[%clk 0:02:29]} 18. Ng3 {[%clk 0:02:37]}  Nf6 {[%clk 0:02:25]} 19. Re5 {[%clk 0:02:28]}  Rfd8 {[%clk 0:02:23]} 20. Qe2 {[%clk 0:02:26]}  Rd6 {[%clk 0:02:22]} 21. Re1 {[%clk 0:02:23]}  Rad8 {[%clk 0:02:22]} 22. Qe3 {[%clk 0:02:20]}  Nd7 {[%clk 0:01:40]} 23. Rh5 {[%clk 0:02:18]}  Nf6 {[%clk 0:01:40]} 24. Re5 {[%clk 0:02:17]}  Rd4 {[%clk 0:01:34]} 25. c3 {[%clk 0:02:16]}  R4d6 {[%clk 0:01:29]} 26. Qe2 {[%clk 0:02:14]}  Bd5 {[%clk 0:01:24]} 27. Bxd5 {[%clk 0:02:05]}  Rxd5 {[%clk 0:01:25]} 28. Rxd5 {[%clk 0:02:05]}  Rxd5 {[%clk 0:01:25]} 29. Rd1 {[%clk 0:02:04]}  Qg5 {[%clk 0:01:18]} 30. Qe3 {[%clk 0:01:58]}  Qh4 {[%clk 0:01:13]} 31. f4 {[%clk 0:01:52]}  Nh5 {[%clk 0:00:52]} 32. Ne2 {[%clk 0:01:51]}  Qd8 {[%clk 0:00:46]} 33. d4 {[%clk 0:01:50]}  Nf6 {[%clk 0:00:45]} 34. Rf1 {[%clk 0:01:49]}  g6 {[%clk 0:00:42]} 35. Rf3 {[%clk 0:01:47]}  Kg7 {[%clk 0:00:42]} 36. Rf1 {[%clk 0:01:47]}  h5 {[%clk 0:00:31]} 37. Qf3 {[%clk 0:01:47]}  cxd4 {[%clk 0:00:30]} 38. Nxd4 {[%clk 0:01:46]}  Ng8 {[%clk 0:00:25]} 39. Nc6 {[%clk 0:01:46]}  Qd6 {[%clk 0:00:24]} 40. Ne5 {[%clk 0:01:46]}  Ne7 {[%clk 0:00:25]} 41. c4 {[%clk 0:01:44]}  Rd2 {[%clk 0:00:25]} 42. Rf2 {[%clk 0:01:44]}  Qd4 {[%clk 0:00:24]} 43. g4 {[%clk 0:01:41]}  hxg4 {[%clk 0:00:23]} 44. hxg4 {[%clk 0:01:41]}  Qxb2 {[%clk 0:00:24]} 45. a4 {[%clk 0:01:37]}  Rxf2 {[%clk 0:00:23]} 46. Qxf2 {[%clk 0:01:37]}  Qxf2+ {[%clk 0:00:21]} 47. Kxf2 {[%clk 0:01:37]}  f6 {[%clk 0:00:21]} 48. Nd7 {[%clk 0:01:36]}  Kf7 {[%clk 0:00:20]} 49. Ke3 {[%clk 0:01:32]}  Nc6 {[%clk 0:00:20]} 50. Ke4 {[%clk 0:01:30]}  Ke7 {[%clk 0:00:21]} 51. f5 {[%clk 0:01:28]}  gxf5+ {[%clk 0:00:20]} 52. gxf5 {[%clk 0:01:28]}  Kxd7 {[%clk 0:00:21]} 53. fxe6+ {[%clk 0:01:27]}  Kxe6 {[%clk 0:00:22]} 54. Kd3 {[%clk 0:01:24]}  Ke5 {[%clk 0:00:22]} 55. Kc3 {[%clk 0:01:24]}  Na5 {[%clk 0:00:22]} 56. Kb4 {[%clk 0:01:23]}  Nc6+ {[%clk 0:00:20]} 57. Kb5 {[%clk 0:01:23]}  Kd6 {[%clk 0:00:21]} 58. Ka6 {[%clk 0:01:21]}  Kc5 {[%clk 0:00:21]} 59. Kb7 {[%clk 0:01:21]}  f5 {[%clk 0:00:21]} 60. a5 {[%clk 0:01:20]}  bxa5 {[%clk 0:00:21]} 61. Ka6 {[%clk 0:01:19]}  f4 {[%clk 0:00:21]} 0-1


[Site "https://www.chess.com"]

[Event "Titled Tuesday Blitz February 15 Late 2022"]
[White "Ozdemir, Serhan Berat"]
[Black "Mikhailov, Viacheslav"]
[WhiteFideId "6374611"]
[BlackFideId "4187369"]
[WhiteElo "1920"]
[BlackElo "2381"]
[Result "0-1"]
[Round "04"]
[TimeControl "180+1"]
[Date "2022.02.16"]
[WhiteClock "0:00:01"]
[BlackClock "0:00:09"]

1. e4 {[%clk 0:02:59]}  c5 {[%clk 0:03:00]} 2. Nf3 {[%clk 0:02:55]}  Nc6 {[%clk 0:02:59]} 3. Bb5 {[%clk 0:02:50]}  g6 {[%clk 0:02:59]} 4. Bxc6 {[%clk 0:02:48]}  dxc6 {[%clk 0:02:59]} 5. O-O {[%clk 0:02:47]}  Bg7 {[%clk 0:02:59]} 6. h3 {[%clk 0:02:44]}  Nf6 {[%clk 0:02:58]} 7. d3 {[%clk 0:02:44]}  O-O {[%clk 0:02:57]} 8. Nbd2 {[%clk 0:02:43]}  b5 {[%clk 0:02:53]} 9. Re1 {[%clk 0:02:35]}  a5 {[%clk 0:02:48]} 10. e5 {[%clk 0:02:34]}  Nd5 {[%clk 0:02:46]} 11. Ne4 {[%clk 0:02:33]}  Qb6 {[%clk 0:02:43]} 12. c4 {[%clk 0:02:22]}  bxc4 {[%clk 0:02:42]} 13. dxc4 {[%clk 0:02:21]}  Nb4 {[%clk 0:02:42]} 14. Be3 {[%clk 0:02:01]}  Rd8 {[%clk 0:02:42]} 15. Bxc5 {[%clk 0:01:51]}  Rxd1 {[%clk 0:02:27]} 16. Bxb6 {[%clk 0:01:50]}  Rxe1+ {[%clk 0:02:25]} 17. Rxe1 {[%clk 0:01:49]}  Nxa2 {[%clk 0:02:17]} 18. Ra1 {[%clk 0:01:40]}  Nb4 {[%clk 0:02:17]} 19. Rxa5 {[%clk 0:01:39]}  Rxa5 {[%clk 0:02:01]} 20. Bxa5 {[%clk 0:01:38]}  Nd3 {[%clk 0:02:02]} 21. Bc3 {[%clk 0:01:28]}  Be6 {[%clk 0:02:01]} 22. Ned2 {[%clk 0:01:14]}  c5 {[%clk 0:01:45]} 23. Kf1 {[%clk 0:01:10]}  Kf8 {[%clk 0:01:34]} 24. h4 {[%clk 0:00:46]}  h6 {[%clk 0:01:27]} 25. g3 {[%clk 0:00:44]}  Nc1 {[%clk 0:01:26]} 26. Ne4 {[%clk 0:00:36]}  Bxc4+ {[%clk 0:01:24]} 27. Ke1 {[%clk 0:00:31]}  Bd5 {[%clk 0:01:23]} 28. Nfd2 {[%clk 0:00:20]}  Nd3+ {[%clk 0:01:18]} 29. Ke2 {[%clk 0:00:20]}  Nxe5 {[%clk 0:01:16]} 30. Nxc5 {[%clk 0:00:18]}  Bc6 {[%clk 0:01:12]} 31. Bxe5 {[%clk 0:00:06]}  Bxe5 {[%clk 0:01:11]} 32. b4 {[%clk 0:00:06]}  Bc3 {[%clk 0:01:07]} 33. Nd3 {[%clk 0:00:02]}  e5 {[%clk 0:00:59]} 34. Nb1 {[%clk 0:00:01]}  Bd4 {[%clk 0:00:57]} 35. Na3 {[%clk 0:00:01]}  Ke7 {[%clk 0:00:51]} 36. b5 {[%clk 0:00:02]}  Bd5 {[%clk 0:00:48]} 37. Nc2 {[%clk 0:00:02]}  Bb6 {[%clk 0:00:45]} 38. Na3 {[%clk 0:00:02]}  e4 {[%clk 0:00:44]} 39. Nb4 {[%clk 0:00:02]}  Bb7 {[%clk 0:00:42]} 40. Nac2 {[%clk 0:00:01]}  Kd6 {[%clk 0:00:41]} 41. Ne3 {[%clk 0:00:01]}  Kc5 {[%clk 0:00:36]} 42. Nbc2 {[%clk 0:00:02]}  Kxb5 {[%clk 0:00:34]} 43. Ng4 {[%clk 0:00:02]}  h5 {[%clk 0:00:29]} 44. Ne5 {[%clk 0:00:03]}  Ba6 {[%clk 0:00:25]} 45. Ne3 {[%clk 0:00:01]}  Kc5+ {[%clk 0:00:14]} 46. Kd2 {[%clk 0:00:01]}  Ba5+ {[%clk 0:00:14]} 47. Kc2 {[%clk 0:00:02]}  Be1 {[%clk 0:00:11]} 48. Nd1 {[%clk 0:00:01]}  Bc4 {[%clk 0:00:09]} 0-1


[Site "https://www.chess.com"]

[Event "Titled Tuesday Blitz February 15 Late 2022"]
[White "Paravyan, David"]
[Black "Bok, Benjamin"]
[WhiteFideId "4194985"]
[BlackFideId "1017063"]
[WhiteElo "2569"]
[BlackElo "2658"]
[Result "1-0"]
[Round "04"]
[TimeControl "180+1"]
[Date "2022.02.15"]
[WhiteClock "0:00:08"]
[BlackClock "0:00:01"]

1. e4 {[%clk 0:03:00]}  c5 {[%clk 0:03:00]} 2. Nf3 {[%clk 0:03:01]}  d6 {[%clk 0:03:00]} 3. d4 {[%clk 0:03:01]}  cxd4 {[%clk 0:03:01]} 4. Nxd4 {[%clk 0:03:02]}  Nf6 {[%clk 0:03:01]} 5. Nc3 {[%clk 0:03:03]}  a6 {[%clk 0:03:01]} 6. Bg5 {[%clk 0:03:04]}  Nbd7 {[%clk 0:03:01]} 7. f4 {[%clk 0:03:02]}  Qc7 {[%clk 0:03:00]} 8. Qf3 {[%clk 0:03:02]}  b5 {[%clk 0:03:00]} 9. Bd3 {[%clk 0:02:56]}  Bb7 {[%clk 0:03:01]} 10. a3 {[%clk 0:02:47]}  g6 {[%clk 0:03:00]} 11. O-O-O {[%clk 0:02:42]}  Bg7 {[%clk 0:03:00]} 12. Kb1 {[%clk 0:02:34]}  Rc8 {[%clk 0:02:59]} 13. Qh3 {[%clk 0:02:23]}  Qb6 {[%clk 0:02:55]} 14. e5 {[%clk 0:01:19]}  dxe5 {[%clk 0:02:50]} 15. fxe5 {[%clk 0:01:20]}  Nxe5 {[%clk 0:02:49]} 16. Rhe1 {[%clk 0:01:20]}  Nxd3 {[%clk 0:02:41]} 17. Rxd3 {[%clk 0:01:19]}  O-O {[%clk 0:02:35]} 18. Bh6 {[%clk 0:01:15]}  Rfd8 {[%clk 0:02:18]} 19. Bxg7 {[%clk 0:01:14]}  Kxg7 {[%clk 0:02:18]} 20. Rxe7 {[%clk 0:01:08]}  Rxd4 {[%clk 0:01:53]} 21. Rxb7 {[%clk 0:00:55]}  Qxb7 {[%clk 0:01:53]} 22. Rxd4 {[%clk 0:00:56]}  Re8 {[%clk 0:01:54]} 23. Rd6 {[%clk 0:00:50]}  Re1+ {[%clk 0:01:16]} 24. Ka2 {[%clk 0:00:50]}  b4 {[%clk 0:01:00]} 25. Rxf6 {[%clk 0:00:13]}  Kxf6 {[%clk 0:00:11]} 26. Qh4+ {[%clk 0:00:13]}  Kf5 {[%clk 0:00:09]} 27. g4+ {[%clk 0:00:07]}  Kf4 {[%clk 0:00:09]} 28. Qg3+ {[%clk 0:00:05]}  Kg5 {[%clk 0:00:10]} 29. h4+ {[%clk 0:00:05]}  Kh6 {[%clk 0:00:09]} 30. Qxe1 {[%clk 0:00:05]}  bxc3 {[%clk 0:00:09]} 31. Qxc3 {[%clk 0:00:06]}  Qe4 {[%clk 0:00:07]} 32. Qc8 {[%clk 0:00:03]}  Kg7 {[%clk 0:00:03]} 33. b3 {[%clk 0:00:04]}  a5 {[%clk 0:00:03]} 34. Kb2 {[%clk 0:00:04]}  h5 {[%clk 0:00:03]} 35. Qc3+ {[%clk 0:00:04]}  Kg8 {[%clk 0:00:03]} 36. gxh5 {[%clk 0:00:05]}  Qxh4 {[%clk 0:00:03]} 37. Qxa5 {[%clk 0:00:05]}  gxh5 {[%clk 0:00:02]} 38. a4 {[%clk 0:00:05]}  Qg4 {[%clk 0:00:02]} 39. Qd8+ {[%clk 0:00:06]}  Kg7 {[%clk 0:00:02]} 40. a5 {[%clk 0:00:06]}  h4 {[%clk 0:00:01]} 41. a6 {[%clk 0:00:07]}  h3 {[%clk 0:00:01]} 42. a7 {[%clk 0:00:07]}  h2 {[%clk 0:00:01]} 43. a8=Q {[%clk 0:00:08]}  Qd4+ {[%clk 0:00:01]} 1-0


[Site "https://www.chess.com"]